bitfinex/quotes_BTCUSD_20240827
["timestamp","ask_amount","ask_price","bid_price","bid_amount"]
[1724724254245,0.039786,63188.0,63187.0,0.667561]
[1724724254415,0.039786,63188.0,63187.0,0.825821]
[1724724254791,0.009086,63188.0,63187.0,1.561961]
[1724724254968,0.009086,63188.0,63187.0,1.245441]
[1724724257807,0.009086,63188.0,63187.0,1.561961]
[1724724258952,0.009086,63188.0,63187.0,1.563961]
[1724724259870,0.009086,63188.0,63187.0,1.565961]
[1724724261186,0.009086,63188.0,63187.0,1.561961]
[1724724261385,0.009086,63188.0,63187.0,1.563961]
[1724724261592,0.009086,63188.0,63187.0,1.145341]
[1724724261727,0.009086,63188.0,63187.0,1.144341]
[1724724262147,0.009086,63188.0,63187.0,1.146341]
[1724724262596,0.009086,63188.0,63187.0,1.142341]
[1724724263145,0.009086,63188.0,63187.0,1.144341]
[1724724263547,0.009086,63188.0,63187.0,1.143341]
[1724724263672,0.009086,63188.0,63187.0,0.666561]
[1724724263887,0.009086,63188.0,63187.0,0.667561]
[1724724263888,0.198043,63188.0,63187.0,0.667561]
[1724724264066,0.19785251,63188.0,63187.0,0.667561]
[1724724264266,0.03959551,63188.0,63187.0,0.667561]
[1724724265097,0.00889551,63188.0,63187.0,0.825821]
[1724724269006,0.03959551,63188.0,63187.0,0.825821]
[1724724269410,0.00889551,63188.0,63187.0,0.825821]
[1724724270973,0.00889551,63188.0,63187.0,0.667561]
[1724724271699,0.00889551,63188.0,63187.0,0.825821]
[1724724275569,0.00889551,63188.0,63187.0,0.667561]
[1724724276167,0.00889551,63188.0,63187.0,0.7563466]
[1724724276389,0.32541051,63188.0,63187.0,0.7563466]
[1724724276575,0.16715251,63188.0,63187.0,0.7563466]
[1724724276986,0.80018251,63188.0,63187.0,0.65008]
[1724724277164,1.1072896,63188.0,63187.0,0.65008]
[1724724277518,1.39396112,63188.0,63187.0,0.65008]
[1724724277715,1.30517552,63188.0,63187.0,0.65008]
[1724724277899,1.49396112,63188.0,63187.0,0.65008]
[1724724278051,1.40517552,63188.0,63187.0,0.65008]
[1724724278397,1.49396112,63188.0,63187.0,0.65008]
[1724724278596,1.49396112,63188.0,63187.0,0.65108]
[1724724279023,1.49396112,63188.0,63187.0,0.65008]
[1724724279221,1.49396112,63188.0,63187.0,0.65108]
[1724724279428,1.49396112,63188.0,63187.0,0.65208]
[1724724279844,1.49396112,63188.0,63187.0,0.65108]
[1724724280047,1.40517552,63188.0,63187.0,0.65108]
[1724724280248,1.40517552,63188.0,63187.0,0.65208]
[1724724280657,1.40517552,63188.0,63187.0,0.65008]
[1724724280864,1.40917552,63188.0,63187.0,0.65108]
[1724724280991,1.41117552,63188.0,63187.0,0.65208]
[1724724281747,1.41117552,63188.0,63187.0,0.652904]
[1724724282205,1.40517552,63188.0,63187.0,0.650904]
[1724724282527,1.40917552,63188.0,63187.0,0.652904]
[1724724283065,1.40917552,63188.0,63187.0,0.651904]
[1724724283275,1.40917552,63188.0,63187.0,0.652904]
[1724724283667,1.40517552,63188.0,63187.0,0.651904]
[1724724283874,1.40517552,63188.0,63187.0,0.652904]
[1724724284076,1.40717552,63188.0,63187.0,0.652904]
[1724724285355,1.40517552,63188.0,63187.0,0.650904]
[1724724285514,1.40717552,63188.0,63187.0,0.652904]
[1724724286110,1.40717552,63188.0,63187.0,0.651904]
[1724724286510,1.40717552,63188.0,63187.0,0.652904]
[1724724286907,1.40517552,63188.0,63187.0,0.651904]
[1724724287555,1.40517552,63188.0,63187.0,0.652904]
[1724724287556,1.52565866,63188.0,63187.0,0.652904]
[1724724290660,1.52561582,63188.0,63187.0,0.652904]
[1724724295512,1.52560756,63188.0,63187.0,0.652904]
[1724724297008,1.37487552,63188.0,63187.0,0.652904]
[1724724297622,1.49330756,63188.0,63187.0,0.652904]
[1724724300355,1.37487552,63188.0,63187.0,0.652904]
[1724724300547,1.49326118,63188.0,63187.0,0.652904]
[1724724302350,1.49326118,63188.0,63187.0,0.9457768]
[1724724302558,1.17674618,63188.0,63187.0,0.9457768]
[1724724302766,1.17674618,63188.0,63187.0,1.03460094]
[1724724302767,0.31649078,63188.0,63187.0,1.03460094]
[1724724303137,0.31649078,63188.0,63187.0,1.03360094]
[1724724303138,0.26915251,63188.0,63187.0,1.03360094]
[1724724303342,0.90218251,63188.0,63187.0,0.9447768]
[1724724303583,0.94952078,63188.0,63187.0,0.9457768]
[1724724303739,0.97319245,63188.0,63187.0,0.9457768]
[1724724303940,0.97119216,63188.0,63187.0,0.9447768]
[1724724304174,0.97319216,63188.0,63187.0,0.9457768]
[1724724304607,0.97319216,63188.0,63187.0,0.9447768]
[1724724304811,0.97119216,63188.0,63187.0,0.9447768]
[1724724305003,0.97119216,63188.0,63187.0,0.9457768]
[1724724305004,0.90218251,63188.0,63187.0,0.9457768]
[1724724305139,1.15304005,63188.0,63187.0,0.879404]
[1724724305322,1.15304005,63188.0,63187.0,0.650904]
[1724724305323,1.55837919,63188.0,63187.0,0.650904]
[1724724305526,1.46569966,63188.0,63187.0,0.651904]
[1724724305729,1.46369966,63188.0,63187.0,0.651904]
[1724724305953,1.58204908,63188.0,63187.0,0.651904]
[1724724306155,1.49322494,63188.0,63187.0,0.650904]
[1724724306560,1.49322494,63188.0,63187.0,0.651904]
[1724724306969,1.49322494,63188.0,63187.0,0.650904]
[1724724307198,1.49522494,63188.0,63187.0,0.651904]
[1724724307398,1.49322494,63188.0,63187.0,0.651904]
[1724724307775,1.49522494,63188.0,63187.0,0.652904]
[1724724308376,1.47992494,63188.0,63187.0,0.652904]
[1724724308626,1.47992494,63188.0,63187.0,0.651904]
[1724724308981,2.24736665,63188.0,63187.0,0.652904]
[1724724309218,2.26636665,63188.0,63187.0,0.651904]
[1724724309435,2.29636665,63188.0,63187.0,0.650904]
[1724724309855,2.29636665,63188.0,63187.0,0.651904]
[1724724310279,2.29636665,63188.0,63187.0,0.650904]
[1724724310484,2.31036665,63188.0,63187.0,0.651904]
[1724724310682,2.29636665,63188.0,63187.0,0.651904]
[1724724310926,2.45249833,63188.0,63187.0,0.651904]
[1724724311118,2.46649833,63188.0,63187.0,0.652904]
[1724724311330,2.46649833,63188.0,63187.0,0.651904]
[1724724311459,2.46649833,63188.0,63187.0,0.001824]
[1724724311839,2.46649833,63188.0,63184.0,0.000824]
[1724724311840,0.74607082,63188.0,63184.0,0.000824]
[1724724312060,1.92779301,63185.0,63184.0,0.000824]
[1724724312323,0.82224,63168.0,63167.0,0.000824]
[1724724312529,1.71165001,63168.0,63167.0,0.000824]
[1724724313848,1.69495001,63168.0,63167.0,0.000824]
[1724724314730,1.73965001,63168.0,63167.0,0.000824]
[1724724315528,1.85790889,63168.0,63167.0,0.000824]
[1724724316960,1.88392906,63168.0,63167.0,0.000824]
[1724724317503,1.76567018,63168.0,63167.0,0.000824]
[1724724317730,1.88392906,63168.0,63167.0,0.000824]
[1724724318000,1.70895001,63168.0,63167.0,0.000824]
[1724724318768,1.82714412,63168.0,63167.0,0.000824]
[1724724319901,1.82695365,63168.0,63167.0,0.000824]
[1724724320307,1.70875954,63168.0,63167.0,0.000824]
[1724724322545,1.80326819,63168.0,63167.0,0.000824]
[1724724322746,1.70875954,63168.0,63167.0,0.000824]
[1724724323511,1.80326269,63168.0,63167.0,0.000824]
[1724724324707,1.80326269,63168.0,63167.0,0.120924]
[1724724324904,1.75599053,63168.0,63167.0,0.120924]
[1724724325125,1.77960603,63168.0,63167.0,0.120924]
[1724724325336,1.81945633,63168.0,63167.0,0.120924]
[1724724326193,1.77222554,63168.0,63167.0,0.120924]
[1724724326591,1.77222554,63168.0,63167.0,0.000824]
[1724724326819,1.84307203,63168.0,63167.0,0.000824]
[1724724326996,1.92835722,63168.0,63167.0,0.000824]
[1724724328254,1.77222554,63168.0,63167.0,0.000824]
[1724724328460,1.84298643,63168.0,63167.0,0.000824]
[1724724329073,1.77222554,63168.0,63167.0,0.000824]
[1724724329454,1.89015122,63168.0,63167.0,0.000824]
[1724724329655,1.80322554,63168.0,63167.0,0.000824]
[1724724329852,1.98235722,63168.0,63167.0,0.000824]
[1724724330030,1.96777242,63168.0,63167.0,0.000824]
[1724724330862,1.96771268,63168.0,63167.0,0.000824]
[1724724331068,1.96771269,63168.0,63167.0,0.000824]
[1724724331219,1.82622554,63168.0,63167.0,0.000824]
[1724724331424,1.96769172,63168.0,63167.0,0.000824]
[1724724331622,2.1238234,63168.0,63167.0,0.000824]
[1724724332042,1.96756507,63168.0,63167.0,0.000824]
[1724724332829,2.28418107,63168.0,63167.0,0.000824]
[1724724333449,2.14271489,63168.0,63167.0,0.000824]
[1724724334636,3.42071489,63168.0,63167.0,0.000824]
[1724724336865,3.44553789,63168.0,63167.0,0.000824]
[1724724337934,3.51015459,63168.0,63167.0,0.000824]
[1724724340598,3.47915459,63168.0,63167.0,0.000824]
[1724724341002,3.41453789,63168.0,63167.0,0.000824]
[1724724341365,3.41544429,63168.0,63167.0,0.000824]
[1724724342018,3.50435978,63168.0,63167.0,0.000824]
[1724724348634,3.64579317,63168.0,63167.0,0.000824]
[1724724349016,3.64579317,63168.0,63167.0,0.223824]
[1724724349604,3.50435978,63168.0,63167.0,0.223824]
[1724724349765,3.18774378,63168.0,63167.0,0.223824]
[1724724350013,2.84792575,63168.0,63167.0,0.223824]
[1724724350211,2.66651778,63168.0,63167.0,0.223824]
[1724724350642,2.59574629,63168.0,63167.0,0.223824]
[1724724350865,2.71368826,63168.0,63167.0,0.223824]
[1724724351034,2.59574629,63168.0,63167.0,0.223824]
[1724724351430,2.69574629,63168.0,63167.0,0.223824]
[1724724351836,2.837393,63168.0,63167.0,0.223824]
[1724724352435,1.41774629,63168.0,63167.0,0.223824]
[1724724353580,1.55946256,63168.0,63167.0,0.223824]
[1724724354504,1.41774629,63168.0,63167.0,0.223824]
[1724724356998,1.39292329,63168.0,63167.0,0.223824]
[1724724357342,1.41774346,63168.0,63167.0,0.223824]
[1724724361697,1.41755293,63168.0,63167.0,0.223824]
[1724724364331,1.73416893,63168.0,63167.0,0.223824]
[1724724365963,1.41755293,63168.0,63167.0,0.223824]
[1724724366364,1.41755293,63168.0,63167.0,0.2462887]
[1724724366365,1.10093693,63168.0,63167.0,0.2462887]
[1724724366589,1.21921084,63168.0,63167.0,0.2462887]
[1724724366796,1.10093693,63168.0,63167.0,0.2462887]
[1724724366996,1.19555218,63168.0,63167.0,0.2462887]
[1724724367197,1.08155218,63168.0,63167.0,0.2462887]
[1724724367424,0.76494541,63168.0,63167.0,0.2462887]
[1724724367613,0.65632093,63168.0,63167.0,0.2462887]
[1724724367833,0.70362428,63168.0,63167.0,0.25848292]
[1724724367982,1.03324028,63168.0,63167.0,0.25848292]
[1724724368392,1.13324028,63168.0,63167.0,0.25848292]
[1724724368596,1.12024028,63168.0,63167.0,0.25848292]
[1724724368804,1.13424028,63168.0,63167.0,0.25848292]
[1724724369020,1.14224028,63168.0,63167.0,0.25848292]
[1724724369245,1.12024028,63168.0,63167.0,0.25848292]
[1724724369459,1.12024028,63168.0,63167.0,0.2462887]
[1724724369621,1.09093693,63168.0,63167.0,0.25847606]
[1724724369840,1.09093693,63168.0,63167.0,0.2462887]
[1724724370159,1.09093693,63168.0,63167.0,0.25847606]
[1724724370371,1.08193693,63168.0,63167.0,0.25847606]
[1724724370546,1.09093693,63168.0,63167.0,0.25847606]
[1724724370885,1.08193693,63168.0,63167.0,0.25847606]
[1724724371091,1.09093693,63168.0,63167.0,0.25847606]
[1724724371297,1.09093693,63168.0,63167.0,0.2462887]
[1724724371748,1.09093693,63168.0,63167.0,0.25847606]
[1724724371892,1.08193693,63168.0,63167.0,0.2462887]
[1724724372113,1.08193693,63168.0,63167.0,0.25847606]
[1724724372738,1.09093693,63168.0,63167.0,0.25847606]
[1724724373262,1.08193693,63168.0,63167.0,0.25847606]
[1724724373460,1.09093693,63168.0,63167.0,0.25847606]
[1724724373614,1.09093693,63168.0,63167.0,0.2462887]
[1724724374202,0.04372657,63168.0,63167.0,0.65182519]
[1724724374408,0.43485191,63176.0,63167.0,0.65182519]
[1724724374409,0.04726645,63177.0,63173.0,0.1018]
[1724724374611,0.158283,63178.0,63176.0,0.08891549]
[1724724374860,0.158283,63178.0,63177.0,0.2242]
[1724724375060,0.474848,63178.0,63177.0,0.23631793]
[1724724375435,0.15828,63179.0,63178.0,0.2242]
[1724724375634,0.15828,63179.0,63178.0,0.2102]
[1724724375877,0.1,63179.0,63178.0,0.30084538]
[1724724376076,0.25828,63179.0,63178.0,0.30084538]
[1724724376653,0.57484,63179.0,63178.0,0.30084538]
[1724724376859,0.57484,63179.0,63178.0,0.22231793]
[1724724377714,0.59965342,63179.0,63178.0,0.22231793]
[1724724378021,0.60665342,63179.0,63178.0,0.22331793]
[1724724379229,0.60665342,63179.0,63178.0,0.2112]
[1724724379436,0.60665342,63179.0,63178.0,0.22331793]
[1724724379635,0.60665342,63179.0,63178.0,0.24667772]
[1724724380152,0.60665342,63179.0,63178.0,9.24667772]
[1724724381739,1.07939143,63179.0,63178.0,9.24667772]
[1724724382003,1.39595143,63179.0,63178.0,9.24667772]
[1724724382986,1.39595143,63179.0,63178.0,9.22331793]
[1724724388753,1.08029783,63179.0,63178.0,9.22331793]
[1724724395052,0.13271982,63179.0,63178.0,9.38159993]
[1724724395258,0.03271982,63179.0,63178.0,9.69816493]
[1724724395513,0.03271982,63179.0,63178.0,10.17086161]
[1724724395870,0.03271982,63179.0,63178.0,9.85429661]
[1724724398099,0.03271982,63179.0,63178.0,9.94310158]
[1724724399156,0.03271982,63179.0,63178.0,10.26066658]
[1724724399925,0.0009064,63184.0,63183.0,0.47481]
[1724724400129,0.0009064,63184.0,63183.0,1.12077608]
[1724724401699,0.0169064,63184.0,63183.0,1.12177608]
[1724724401900,0.0049064,63184.0,63183.0,1.12177608]
[1724724402101,0.0049064,63184.0,63183.0,1.03297111]
[1724724402300,0.0079064,63184.0,63183.0,1.05543581]
[1724724402502,0.0049064,63184.0,63183.0,1.05543581]
[1724724403157,0.0009064,63184.0,63183.0,1.05443581]
[1724724403313,0.0029064,63184.0,63183.0,1.05443581]
[1724724403997,0.0009064,63184.0,63183.0,1.05543581]
[1724724404125,0.0029064,63184.0,63183.0,1.05543581]
[1724724406896,0.0019064,63184.0,63183.0,1.05543581]
[1724724407097,0.0009064,63184.0,63183.0,1.05543581]
[1724724407281,0.0009064,63184.0,63183.0,1.05643581]
[1724724407681,0.0009064,63184.0,63183.0,1.05743581]
[1724724408341,0.0009064,63184.0,63183.0,1.05643581]
[1724724408513,0.0019064,63184.0,63183.0,1.05643581]
[1724724408735,0.0009064,63184.0,63183.0,1.05643581]
[1724724409109,0.0009064,63184.0,63183.0,1.06043581]
[1724724409449,0.0009064,63184.0,63183.0,1.05943581]
[1724724409650,0.0009064,63184.0,63183.0,1.06243581]
[1724724410175,0.0009064,63184.0,63183.0,1.05943581]
[1724724410820,0.0009064,63184.0,63183.0,1.06343581]
[1724724411983,0.0009064,63184.0,63183.0,1.37997581]
[1724724414081,0.0009064,63184.0,63183.0,1.06343581]
[1724724414273,0.0009064,63184.0,63183.0,0.74689581]
[1724724415431,0.0009064,63184.0,63183.0,0.74289581]
[1724724415616,0.0007159,63184.0,63183.0,0.74289581]
[1724724416756,0.0007159,63184.0,63183.0,0.73889581]
[1724724417659,0.0007159,63184.0,63183.0,0.42235581]
[1724724418221,0.0007159,63184.0,63183.0,0.73889581]
[1724724420103,0.0007159,63184.0,63183.0,1.05543581]
[1724724420570,0.0007159,63184.0,63183.0,0.73889581]
[1724724421174,0.0007159,63184.0,63183.0,0.73989581]
[1724724421605,0.0007159,63184.0,63183.0,0.73889581]
[1724724421813,0.0007159,63184.0,63183.0,0.74189581]
[1724724421984,0.0007159,63184.0,63183.0,1.05843581]
[1724724422189,0.0007159,63184.0,63183.0,1.14721441]
[1724724422404,0.0007159,63184.0,63183.0,0.83067441]
[1724724422747,0.0007159,63184.0,63183.0,0.74289581]
[1724724422977,0.0007159,63184.0,63183.0,0.83167441]
[1724724423136,0.0007159,63184.0,63183.0,0.83067441]
[1724724423659,0.0007159,63184.0,63183.0,0.83367441]
[1724724423855,0.0007159,63184.0,63183.0,0.27008581]
[1724724424896,0.3172509,63184.0,63183.0,0.26908581]
[1724724425099,0.94823091,63184.0,63183.0,0.01802111]
[1724724425296,0.99550633,63184.0,63183.0,0.01502111]
[1724724425683,1.26476591,63184.0,63183.0,0.01284511]
[1724724425854,1.26776591,63184.0,63183.0,0.01284511]
[1724724426085,1.34067904,63184.0,63183.0,0.01284511]
[1724724426233,1.34067186,63184.0,63183.0,0.01284511]
[1724724426439,1.36976591,63184.0,63183.0,0.01284511]
[1724724426635,1.36776591,63184.0,63183.0,0.01284511]
[1724724426836,1.37176591,63184.0,63183.0,0.01384511]
[1724724427212,1.46630718,63184.0,63183.0,0.01384511]
[1724724427411,1.46330718,63184.0,63183.0,0.01384511]
[1724724427832,1.47730445,63184.0,63183.0,0.01484511]
[1724724428034,1.12313654,63184.0,63183.0,0.33867679]
[1724724428250,0.33388853,63184.0,63183.0,0.33867679]
[1724724428451,0.2769829,63184.0,63183.0,0.33967679]
[1724724428698,0.2769829,63184.0,63183.0,0.49894679]
[1724724428699,0.0187159,63184.0,63183.0,0.49894679]
[1724724428900,0.0187159,63184.0,63183.0,0.81548679]
[1724724429212,0.0187159,63184.0,63183.0,0.81448679]
[1724724429349,0.0047159,63184.0,63183.0,0.81448679]
[1724724429545,0.0007159,63184.0,63183.0,0.81348679]
[1724724429923,0.0047159,63184.0,63183.0,0.81448679]
[1724724430728,0.0117159,63184.0,63183.0,0.81448679]
[1724724431137,0.0007159,63184.0,63183.0,0.81348679]
[1724724431354,0.0007159,63184.0,63183.0,0.81448679]
[1724724431753,0.0007159,63184.0,63183.0,0.81348679]
[1724724432078,0.0007159,63184.0,63183.0,0.81848679]
[1724724432738,0.0007159,63184.0,63183.0,0.81748679]
[1724724432965,0.0007159,63184.0,63183.0,0.82148679]
[1724724434404,0.0007159,63184.0,63183.0,1.13802679]
[1724724434573,0.0007159,63184.0,63183.0,1.6107448]
[1724724436709,0.0007159,63184.0,63183.0,2.0855548]
[1724724448631,0.0007159,63184.0,63183.0,1.61283679]
[1724724448834,0.0007159,63184.0,63183.0,1.29629679]
[1724724449885,0.0007159,63184.0,63183.0,1.28829679]
[1724724450117,0.0007159,63184.0,63183.0,1.37708843]
[1724724450252,0.0007159,63184.0,63183.0,1.38008843]
[1724724450447,0.0007159,63184.0,63183.0,1.37708843]
[1724724450899,0.0007159,63184.0,63183.0,1.37908843]
[1724724451508,0.0007159,63184.0,63183.0,1.38208843]
[1724724451910,0.0007159,63184.0,63183.0,1.37908843]
[1724724452139,0.0007159,63184.0,63183.0,1.28829679]
[1724724452362,0.0007159,63184.0,63183.0,1.29229679]
[1724724452565,0.0007159,63184.0,63183.0,1.29629679]
[1724724452770,0.0007159,63184.0,63183.0,1.61283679]
[1724724452977,0.0007159,63184.0,63183.0,1.92937679]
[1724724454271,0.0007159,63184.0,63183.0,2.0855548]
[1724724466766,0.0009064,63188.0,63187.0,0.8924]
[1724724466966,0.0009064,63188.0,63187.0,1.67563611]
[1724724467169,0.0009064,63188.0,63187.0,2.33688474]
[1724724467552,0.0009064,63188.0,63187.0,2.3220258]
[1724724468019,0.0009064,63188.0,63187.0,2.3280258]
[1724724468491,0.0009064,63188.0,63187.0,2.3220258]
[1724724468719,0.0009064,63188.0,63187.0,2.31013697]
[1724724468962,0.0009064,63188.0,63187.0,2.32202407]
[1724724469192,0.0019064,63188.0,63187.0,2.33202407]
[1724724469438,0.0009064,63188.0,63187.0,2.32202407]
[1724724469702,0.0019064,63188.0,63187.0,2.33202407]
[1724724469937,0.0009064,63188.0,63187.0,2.33602407]
[1724724470198,0.0009064,63188.0,63187.0,2.34802407]
[1724724470441,0.0019064,63188.0,63187.0,2.33402407]
[1724724470680,0.00906401,63208.0,63207.0,0.47563]
[1724724470940,0.00906401,63208.0,63207.0,1.44558]
[1724724471256,0.00906401,63208.0,63207.0,1.45878101]
[1724724472452,0.01206401,63208.0,63207.0,1.77520101]
[1724724472962,0.00906401,63208.0,63207.0,1.81379028]
[1724724473431,0.00906401,63208.0,63207.0,1.81579028]
[1724724473667,0.00906401,63208.0,63207.0,1.81379028]
[1724724473940,0.00906401,63208.0,63207.0,1.49737028]
[1724724474134,0.00906401,63208.0,63207.0,1.50037028]
[1724724475231,0.00906401,63208.0,63207.0,1.42157028]
[1724724475432,0.01076401,63208.0,63207.0,0.69163028]
[1724724476277,0.01076401,63208.0,63207.0,0.68563028]
[1724724476649,0.01276401,63208.0,63207.0,0.68563028]
[1724724476886,0.01076401,63208.0,63207.0,0.68563028]
[1724724477064,0.01076401,63208.0,63207.0,0.52742028]
[1724724477271,0.01276401,63208.0,63207.0,0.52742028]
[1724724477737,0.01106401,63208.0,63207.0,0.68563028]
[1724724478401,0.00906401,63208.0,63207.0,0.68563028]
[1724724478835,0.01106401,63208.0,63207.0,0.68563028]
[1724724479191,0.00906401,63208.0,63207.0,0.68563028]
[1724724479345,0.00906401,63208.0,63207.0,0.68663028]
[1724724480132,0.00906401,63208.0,63207.0,0.68763028]
[1724724481309,0.00906401,63208.0,63207.0,0.52942028]
[1724724481514,0.01076401,63208.0,63207.0,0.52942028]
[1724724481730,0.16897101,63208.0,63207.0,0.52942028]
[1724724482060,0.16727101,63208.0,63207.0,0.52942028]
[1724724482424,0.00906401,63208.0,63207.0,0.52842028]
[1724724482619,0.17127101,63208.0,63207.0,0.52842028]
[1724724483027,0.17127101,63208.0,63207.0,0.52742028]
[1724724483268,0.17527101,63208.0,63207.0,0.52742028]
[1724724483464,0.16727101,63208.0,63207.0,0.52742028]
[1724724484722,0.17027101,63208.0,63207.0,0.52742028]
[1724724485191,1.27569402,63208.0,63207.0,0.48783101]
[1724724485395,1.47190844,63208.0,63207.0,0.48783101]
[1724724485605,0.11076401,63208.0,63207.0,0.48783101]
[1724724485820,0.15631932,63208.0,63207.0,0.47463]
[1724724486032,0.15631932,63208.0,63207.0,0.48996321]
[1724724486033,0.27127101,63208.0,63207.0,0.48996321]
[1724724486497,0.02406401,63208.0,63207.0,0.56636306]
[1724724487132,0.18227101,63208.0,63207.0,0.56736306]
[1724724487513,0.02406401,63208.0,63207.0,0.56636306]
[1724724487912,0.00906401,63208.0,63207.0,0.56536306]
[1724724488121,0.16727101,63208.0,63207.0,0.56536306]
[1724724488314,0.17827101,63208.0,63207.0,0.56636306]
[1724724488524,0.00906401,63208.0,63207.0,0.56636306]
[1724724488898,0.01506401,63208.0,63207.0,0.56736306]
[1724724489128,0.01506401,63208.0,63207.0,0.56636306]
[1724724489482,0.02406401,63208.0,63207.0,0.56636306]
[1724724489887,0.00906401,63208.0,63207.0,0.56636306]
[1724724490309,0.01106401,63208.0,63207.0,0.72457306]
[1724724491164,0.01206401,63208.0,63207.0,0.72457306]
[1724724491365,0.00906401,63208.0,63207.0,0.72457306]
[1724724491758,0.01106401,63208.0,63207.0,0.72457306]
[1724724492629,0.01206401,63208.0,63207.0,0.56636306]
[1724724493594,0.01206401,63208.0,63207.0,0.56536306]
[1724724493796,0.17027101,63208.0,63207.0,0.56536306]
[1724724494783,0.48668601,63208.0,63207.0,0.56536306]
[1724724495417,0.48668601,63208.0,63207.0,0.55002985]
[1724724495693,0.48668601,63208.0,63207.0,0.56540603]
[1724724496497,0.01206401,63208.0,63207.0,0.72361603]
[1724724496762,0.01206401,63208.0,63207.0,0.73110603]
[1724724497089,0.17027101,63208.0,63207.0,0.73110603]
[1724724497496,0.16927101,63208.0,63207.0,0.73110603]
[1724724497942,0.17027101,63208.0,63207.0,0.73110603]
[1724724498238,0.16827101,63208.0,63207.0,0.73110603]
[1724724498391,0.17027101,63208.0,63207.0,0.73110603]
[1724724498597,0.16827101,63208.0,63207.0,0.73110603]
[1724724499006,0.17027101,63208.0,63207.0,0.73110603]
[1724724499587,0.16927101,63208.0,63207.0,0.73110603]
[1724724500398,0.01106401,63208.0,63207.0,1.36494603]
[1724724500603,0.01106401,63208.0,63207.0,1.52315603]
[1724724500832,0.01206401,63208.0,63207.0,1.52315603]
[1724724501265,0.01006401,63208.0,63207.0,1.52315603]
[1724724501479,0.00906401,63208.0,63207.0,1.83957603]
[1724724501637,0.01106401,63208.0,63207.0,1.84057603]
[1724724501837,0.00906401,63208.0,63207.0,1.84057603]
[1724724502316,0.00906401,63208.0,63207.0,1.84157603]
[1724724502848,0.01006401,63208.0,63207.0,1.84857603]
[1724724503296,0.01006401,63208.0,63207.0,1.85457603]
[1724724503644,0.01006401,63208.0,63207.0,1.84857603]
[1724724504055,0.01006401,63208.0,63207.0,1.85657603]
[1724724504903,0.01006401,63208.0,63207.0,1.54015603]
[1724724506510,0.01006401,63208.0,63207.0,1.22373603]
[1724724508405,0.01006401,63208.0,63207.0,1.54015603]
[1724724508891,0.01006401,63208.0,63207.0,1.22373603]
[1724724509679,0.01006401,63208.0,63207.0,0.67480603]
[1724724510091,0.01006401,63208.0,63207.0,0.67580603]
[1724724510295,0.05738814,63208.0,63207.0,0.83401603]
[1724724510493,0.53201014,63208.0,63207.0,0.58240603]
[1724724510860,0.5556722,63208.0,63207.0,0.57540603]
[1724724511061,0.5556722,63208.0,63207.0,0.57640603]
[1724724511192,0.48368601,63208.0,63207.0,0.56740603]
[1724724511392,0.16727101,63208.0,63207.0,0.56840603]
[1724724511616,0.23830344,63208.0,63207.0,0.56840603]
[1724724511828,0.23830352,63208.0,63207.0,0.56840603]
[1724724512032,0.23830352,63208.0,63207.0,0.56740603]
[1724724512210,0.26198102,63208.0,63207.0,0.56740603]
[1724724512423,0.26198102,63208.0,63207.0,0.56840603]
[1724724512620,0.26198102,63208.0,63207.0,0.56740603]
[1724724513231,0.80010101,63208.0,63207.0,0.56740603]
[1724724513514,0.91848853,63208.0,63207.0,0.56740603]
[1724724513647,1.07466654,63208.0,63207.0,0.56740603]
[1724724514475,1.39108154,63208.0,63207.0,0.49200618]
[1724724514679,1.27269402,63208.0,63207.0,0.49200618]
[1724724514882,1.68910902,63208.0,63207.0,0.49200618]
[1724724515325,1.68910902,63208.0,63207.0,0.49100618]
[1724724515526,1.84893217,63208.0,63207.0,0.49000618]
[1724724515743,1.85593217,63208.0,63207.0,0.49000618]
[1724724516073,1.69610902,63208.0,63207.0,0.49000618]
[1724724516279,1.70710902,63208.0,63207.0,0.47563]
[1724724516488,1.71110902,63208.0,63207.0,0.4894296]
[1724724518315,1.68910902,63208.0,63207.0,0.4874296]
[1724724518514,1.70310902,63208.0,63207.0,0.47563]
[1724724518740,1.8592407,63208.0,63207.0,0.3884296]
[1724724518989,1.8732407,63208.0,63207.0,0.3894296]
[1724724519158,1.8732407,63208.0,63207.0,0.37463]
[1724724519159,1.8452407,63208.0,63207.0,0.37463]
[1724724519375,1.8592407,63208.0,63207.0,0.37563]
[1724724519581,1.8732407,63208.0,63207.0,0.37663]
[1724724519775,1.8732407,63208.0,63207.0,0.37563]
[1724724519976,2.00109861,63208.0,63207.0,0.37563]
[1724724520270,3.29752402,63208.0,63207.0,0.37563]
[1724724520489,3.48034717,63208.0,63207.0,0.37563]
[1724724520685,3.33452402,63208.0,63207.0,0.37563]
[1724724522169,3.48016402,63208.0,63207.0,0.37563]
[1724724522449,3.48016402,63208.0,63207.0,0.37463]
[1724724522673,3.49416402,63208.0,63207.0,0.37463]
[1724724522880,3.48016402,63208.0,63207.0,0.37463]
[1724724523027,3.46616402,63208.0,63207.0,0.37463]
[1724724523228,3.32052402,63208.0,63207.0,0.37463]
[1724724523429,1.10761,63199.0,63198.0,0.00019047]
[1724724523632,1.36378801,63199.0,63198.0,0.00019047]
[1724724524016,1.70505681,63199.0,63198.0,0.00019047]
[1724724525787,0.791275,63189.0,63188.0,0.000824]
[1724724525983,0.94745301,63189.0,63188.0,0.000824]
[1724724526617,0.9722623,63189.0,63188.0,0.000824]
[1724724527223,0.9732623,63189.0,63188.0,0.000824]
[1724724528978,0.9732623,63189.0,63188.0,0.160624]
[1724724530832,0.9732623,63189.0,63188.0,0.1767688]
[1724724532194,0.97307183,63189.0,63188.0,0.160624]
[1724724532817,0.97307183,63189.0,63188.0,0.636396]
[1724724532818,0.02580929,63189.0,63188.0,0.636396]
[1724724533221,0.02580929,63189.0,63188.0,0.64950643]
[1724724538634,0.02580929,63189.0,63188.0,0.96602143]
[1724724540245,0.02580929,63189.0,63188.0,1.50446453]
[1724724540436,0.02580929,63189.0,63188.0,1.65499338]
[1724724541279,0.02580929,63189.0,63188.0,0.17373443]
[1724724542325,0.02680929,63189.0,63188.0,0.17473443]
[1724724542519,0.02680929,63189.0,63188.0,0.33399143]
[1724724542723,0.02480929,63189.0,63188.0,0.33299143]
[1724724543038,0.02580929,63189.0,63188.0,0.33299143]
[1724724543533,0.02580929,63189.0,63188.0,0.64950643]
[1724724543737,0.02580929,63189.0,63188.0,0.71453967]
[1724724545593,0.02580929,63189.0,63188.0,0.39802467]
[1724724546044,0.02580929,63189.0,63188.0,0.71453967]
[1724724546773,0.02580929,63189.0,63188.0,1.03105467]
[1724724547382,0.02580929,63189.0,63188.0,0.71453967]
[1724724553669,0.02580929,63189.0,63188.0,0.23976767]
[1724724553881,0.50057429,63189.0,63188.0,0.10483443]
[1724724554094,0.81708429,63189.0,63188.0,0.091724]
[1724724554552,0.81708429,63189.0,63188.0,0.000824]